bitfinex/quotes_SOLUSD_20230116
["timestamp","ask_amount","ask_price","bid_price","bid_amount"]
[1673879820816,20.0,23.255,23.235,20.0]
[1673879821012,43.41908354,23.256,23.235,20.0]
[1673879821223,26.41908354,23.256,23.236,20.0]
[1673879821434,113.6145,23.257,23.237,20.0]
[1673879821664,20.0,23.256,23.237,20.0]
[1673879821864,113.6145,23.257,23.237,20.0]
[1673879822078,135.07646354,23.257,23.237,20.0]
[1673879822285,20.0,23.256,23.238,17.0]
[1673879822491,135.07646354,23.257,23.239,20.0]
[1673879822704,113.6145,23.257,23.239,20.0]
[1673879823134,113.6145,23.257,23.24,17.0]
[1673879823870,113.6145,23.257,23.24,42.06]
[1673879824087,113.6145,23.257,23.242,20.0]
[1673879824271,113.6145,23.257,23.243,37.0]
[1673879824487,113.6145,23.257,23.244,20.0]
[1673879824692,113.6145,23.257,23.245,20.0]
[1673879825010,21.46196354,23.266,23.246,17.0]
[1673879825225,108.1563,23.265,23.247,40.0]
[1673879825550,20.0,23.264,23.247,20.0]
[1673879826806,20.0,23.262,23.247,20.0]
[1673879827005,52.26,23.267,23.247,20.0]
[1673879827006,111.4204,23.27,23.25,25.16]
[1673879827222,111.4204,23.27,23.251,37.0]
[1673879827634,32.25,23.277,23.26,25.16]
[1673879827847,111.0758,23.282,23.261,20.0]
[1673879828051,20.0,23.281,23.261,20.0]
[1673879828259,20.0,23.281,23.261,37.0]
[1673879828471,21.46196354,23.28,23.261,20.0]
[1673879828701,53.70196354,23.28,23.255,20.0]
[1673879828901,20.0,23.279,23.256,17.0]
[1673879829111,20.0,23.279,23.26,25.16]
[1673879829437,53.71196354,23.278,23.26,25.16]
[1673879829644,20.0,23.277,23.26,25.16]
[1673879829854,41.46196354,23.277,23.261,17.0]
[1673879830071,21.46196354,23.277,23.261,17.0]
[1673879830258,20.0,23.279,23.261,17.0]
[1673879830468,17.0,23.278,23.261,17.0]
[1673879830674,49.25,23.278,23.261,17.0]
[1673879831121,17.0,23.278,23.261,17.0]
[1673879831331,32.24,23.28,23.261,17.0]
[1673879831540,32.24,23.285,23.262,20.0]
[1673879831759,32.23,23.287,23.263,17.0]
[1673879831960,144.6127,23.288,23.264,20.0]
[1673879832184,144.6127,23.288,23.27,25.03]
[1673879832586,41.46196354,23.287,23.27,25.03]
[1673879832909,21.46196354,23.286,23.265,110.1184]
[1673879833124,24.95712,23.285,23.266,20.0]
[1673879833316,4.95712,23.284,23.266,20.0]
[1673879833526,58.65908354,23.284,23.266,20.0]
[1673879833738,21.46196354,23.283,23.261,20.0]
[1673879833949,20.0,23.281,23.261,20.0]
[1673879834264,21.46196354,23.28,23.261,20.0]
[1673879834469,17.0,23.279,23.258,110.1184]
[1673879834684,20.0,23.278,23.258,110.1184]
[1673879834901,17.0,23.277,23.258,110.1184]
[1673879835099,38.46196354,23.277,23.258,110.1184]
[1673879835314,20.0,23.276,23.258,110.1184]
[1673879835536,17.0,23.275,23.258,110.1184]
[1673879835745,41.46196354,23.276,23.259,20.0]
[1673879835947,21.46196354,23.274,23.259,20.0]
[1673879836161,17.0,23.273,23.259,20.0]
[1673879836387,49.25,23.273,23.251,134.0779]
[1673879836593,41.46196354,23.272,23.251,134.0779]
[1673879836909,20.0,23.272,23.252,20.0]
[1673879837096,20.0,23.276,23.252,20.0]
[1673879837097,21.46196354,23.276,23.253,20.0]
[1673879837307,4.95712,23.28,23.26,25.06]
[1673879837546,4.95712,23.28,23.261,37.0]
[1673879837855,46.41908354,23.28,23.261,37.0]
[1673879838271,46.41908354,23.28,23.261,20.0]
[1673879838594,20.0,23.278,23.261,20.0]
[1673879838782,20.0,23.276,23.261,20.0]
[1673879838993,20.0,23.276,23.25,25.16]
[1673879839205,17.0,23.275,23.253,17.0]
[1673879839951,20.0,23.274,23.252,17.0]
[1673879841226,20.0,23.274,23.254,20.0]
[1673879841440,20.0,23.274,23.255,37.0]
[1673879841654,17.0,23.275,23.255,20.0]
[1673879841851,25.08,23.3,23.26,25.32]
[1673879842177,25.08,23.3,23.261,109.1489]
[1673879842178,20.0,23.287,23.261,109.1489]
[1673879842488,46.41908354,23.287,23.261,150.61086354]
[1673879842813,78.64908354,23.287,23.261,150.61086354]
[1673879843018,78.64908354,23.287,23.262,17.0]
[1673879843227,78.64908354,23.287,23.263,20.0]
[1673879843418,78.64908354,23.287,23.264,17.0]
[1673879843419,17.0,23.286,23.264,17.0]
[1673879843630,20.0,23.285,23.25,25.16]
[1673879843853,20.0,23.283,23.258,20.0]
[1673879844068,21.95712,23.282,23.258,20.0]
[1673879844381,4.95712,23.281,23.25,25.16]
[1673879844571,20.0,23.279,23.25,25.16]
[1673879844781,4.95712,23.278,23.25,25.16]
[1673879844991,75.66908354,23.278,23.25,25.16]
[1673879845222,21.46196354,23.277,23.25,25.16]
[1673879845432,20.0,23.275,23.25,25.16]
[1673879845640,20.0,23.273,23.25,25.16]
[1673879845852,21.46196354,23.274,23.251,20.0]
[1673879846051,21.46196354,23.274,23.252,17.0]
[1673879846266,20.0,23.273,23.252,17.0]
[1673879846477,20.0,23.273,23.251,17.0]
[1673879846682,20.0,23.273,23.252,20.0]
[1673879846887,20.0,23.273,23.253,17.0]
[1673879847302,20.0,23.273,23.254,20.0]
[1673879847651,20.0,23.273,23.255,17.0]
[1673879847950,20.0,23.273,23.256,20.0]
[1673879848167,20.0,23.273,23.257,17.0]
[1673879848364,20.0,23.273,23.258,20.0]
[1673879848795,20.0,23.273,23.259,17.0]
[1673879849208,20.0,23.273,23.26,20.0]
[1673879849422,41.46196354,23.275,23.26,20.0]
[1673879850139,37.0,23.274,23.244,96.2379]
[1673879850354,4.95712,23.273,23.244,76.2379]
[1673879850579,25.06,23.27,23.244,76.2379]
[1673879850778,20.0,23.269,23.244,76.2379]
[1673879850987,17.0,23.268,23.244,76.2379]
[1673879851410,38.46196354,23.268,23.244,76.2379]
[1673879851622,20.0,23.267,23.244,76.2379]
[1673879851834,17.0,23.266,23.248,17.0]
[1673879852240,20.0,23.267,23.248,17.0]
[1673879852999,20.0,23.267,23.249,20.0]
[1673879853186,20.0,23.267,23.25,17.0]
[1673879853398,123.81822,23.27,23.25,17.0]
[1673879853619,21.46196354,23.276,23.251,20.0]
[1673879853830,52.24,23.282,23.252,37.0]
[1673879854048,20.0,23.282,23.252,66.82949298]
[1673879854263,20.0,23.282,23.253,20.0]
[1673879854464,20.0,23.282,23.254,37.0]
[1673879854682,20.0,23.282,23.255,20.0]
[1673879854884,20.0,23.282,23.256,17.0]
[1673879855104,20.0,23.282,23.257,20.0]
[1673879855307,20.0,23.28,23.258,17.0]
[1673879855726,20.0,23.28,23.259,20.0]
[1673879855936,20.0,23.28,23.26,17.0]
[1673879859109,20.0,23.28,23.26,42.06]
[1673879860249,151.7992,23.283,23.26,42.06]
[1673879860462,20.0,23.282,23.26,42.06]
[1673879861813,32.23,23.29,23.261,29.82949298]
[1673879862022,402.0,23.291,23.261,29.82949298]
[1673879862023,402.0,23.291,23.261,143.09699298]
[1673879862238,402.0,23.291,23.262,20.0]
[1673879862450,20.0,23.29,23.263,20.0]
[1673879862681,20.0,23.29,23.263,49.82949298]
[1673879862878,20.0,23.29,23.264,20.0]
[1673879863073,20.0,23.29,23.265,17.0]
[1673879863285,20.0,23.29,23.266,20.0]
[1673879863520,20.0,23.288,23.267,17.0]
[1673879863726,17.0,23.287,23.268,20.0]
[1673879863936,17.0,23.287,23.269,17.0]
[1673879864138,20.0,23.286,23.27,20.0]
[1673879866868,17.0,23.285,23.27,20.0]
[1673879867079,54.19712,23.285,23.251,21.46196354]
[1673879867301,134.88112,23.284,23.253,117.6568]
[1673879867502,20.0,23.282,23.253,117.6568]
[1673879867715,4.95712,23.281,23.253,117.6568]
[1673879868045,20.0,23.279,23.253,117.6568]
[1673879868231,17.0,23.278,23.253,117.6568]
[1673879868444,20.0,23.277,23.253,117.6568]
[1673879868658,17.0,23.276,23.253,117.6568]
[1673879869170,17.0,23.276,23.254,20.0]
[1673879869903,20.0,23.279,23.255,20.0]
[1673879870134,4.95712,23.278,23.256,20.0]
[1673879870327,20.0,23.279,23.257,17.0]
[1673879870539,24.95712,23.279,23.257,17.0]
[1673879870766,24.95712,23.279,23.258,20.0]
[1673879871089,24.95712,23.279,23.259,17.0]
[1673879871291,17.0,23.278,23.26,20.0]
[1673879871611,20.0,23.277,23.26,20.0]
[1673879871830,17.0,23.276,23.26,20.0]
[1673879872010,20.0,23.277,23.261,17.0]
[1673879872220,20.0,23.277,23.26,20.0]
[1673879872432,20.0,23.277,23.254,20.0]
[1673879872641,17.0,23.276,23.255,17.0]
[1673879872852,17.0,23.276,23.256,10.0]
[1673879873083,20.0,23.277,23.258,20.0]
[1673879873397,20.0,23.277,23.259,17.0]
[1673879874007,20.0,23.277,23.257,17.0]
[1673879874230,20.0,23.277,23.258,20.0]
[1673879874446,20.0,23.277,23.259,17.0]
[1673879874980,21.95712,23.276,23.26,20.0]
[1673879875167,37.20712,23.276,23.26,20.0]
[1673879875379,37.20712,23.276,23.254,20.0]
[1673879875698,4.95712,23.276,23.255,20.0]
[1673879876020,20.0,23.277,23.256,20.0]
[1673879876231,20.0,23.277,23.257,17.0]
[1673879876669,20.0,23.277,23.258,20.0]
[1673879876854,20.0,23.277,23.259,17.0]
[1673879877391,20.0,23.279,23.26,20.0]
[1673879877607,20.0,23.279,23.261,17.0]
[1673879877816,41.46196354,23.279,23.261,17.0]
[1673879878132,20.0,23.279,23.261,17.0]
[1673879880456,41.46196354,23.279,23.261,17.0]
[1673879880760,20.0,23.277,23.261,17.0]
[1673879881371,17.0,23.276,23.26,20.0]
[1673879881589,20.0,23.275,23.254,20.0]
[1673879881794,17.0,23.274,23.254,20.0]
[1673879882655,20.0,23.273,23.254,20.0]
[1673879882861,20.0,23.273,23.255,17.0]
[1673879883268,20.0,23.273,23.256,20.0]
[1673879884344,21.46196354,23.274,23.257,17.0]
[1673879884655,20.0,23.277,23.257,17.0]
[1673879884851,20.0,23.277,23.258,20.0]
[1673879885063,20.0,23.277,23.259,17.0]
[1673879885274,20.0,23.277,23.26,20.0]
[1673879885487,20.0,23.277,23.261,17.0]
[1673879887173,21.46196354,23.278,23.261,17.0]
[1673879887383,20.0,23.282,23.263,20.0]
[1673879887594,20.0,23.282,23.264,37.0]
[1673879888023,41.46196354,23.282,23.264,37.0]
[1673879888228,41.46196354,23.282,23.264,20.0]
[1673879888644,41.46196354,23.282,23.261,20.0]
[1673879889392,17.0,23.281,23.261,20.0]
[1673879889611,20.0,23.28,23.262,17.0]
[1673879889914,20.0,23.28,23.263,20.0]
[1673879890128,20.0,23.28,23.264,17.0]
[1673879890339,20.0,23.28,23.265,20.0]
[1673879890955,17.0,23.279,23.265,20.0]
[1673879891152,20.0,23.278,23.265,20.0]
[1673879891374,20.0,23.278,23.258,20.0]
[1673879891581,20.0,23.278,23.259,17.0]
[1673879891793,20.0,23.278,23.258,17.0]
[1673879891997,41.46196354,23.278,23.257,144.92032632]
[1673879892214,20.0,23.276,23.252,21.46196354]
[1673879892417,17.0,23.275,23.25,16.68]
[1673879892636,20.0,23.274,23.25,16.68]
[1673879892839,17.0,23.273,23.25,16.68]
[1673879893492,20.0,23.272,23.25,16.68]
[1673879894957,20.0,23.272,23.254,20.0]
[1673879895154,20.0,23.27,23.25,16.68]
[1673879895366,20.0,23.27,23.251,17.0]
[1673879896118,132.8401,23.27,23.251,17.0]
[1673879898520,132.8401,23.27,23.25,16.68]
[1673879898726,20.0,23.268,23.249,26.10282632]
[1673879898936,20.0,23.266,23.25,20.0]
[1673879899482,41.46196354,23.266,23.25,20.0]
[1673879899674,20.0,23.264,23.248,20.0]
[1673879899882,17.0,23.263,23.248,20.0]
[1673879900100,17.0,23.263,23.245,20.0]
[1673879900312,20.0,23.262,23.245,20.0]
[1673879900519,20.0,23.26,23.241,145.06052632]
[1673879900845,20.0,23.26,23.241,118.9577]
[1673879901459,20.0,23.26,23.235,64.78543886]
[1673879901460,17.0,23.259,23.235,64.78543886]
[1673879901672,21.95712,23.259,23.235,43.32347532]
[1673879901899,20.0,23.258,23.235,43.32347532]
[1673879902108,20.0,23.256,23.235,43.32347532]
[1673879902513,20.0,23.254,23.235,43.32347532]
[1673879903471,17.0,23.255,23.236,20.0]
[1673879903894,116.2681,23.256,23.237,17.0]
[1673879904306,20.0,23.255,23.237,17.0]
[1673879904516,20.0,23.255,23.236,17.0]
[1673879904727,20.0,23.255,23.237,20.0]
[1673879904927,20.0,23.255,23.238,17.0]
[1673879905137,116.2681,23.256,23.238,17.0]
[1673879905365,116.2681,23.256,23.239,20.0]
[1673879905575,116.2681,23.256,23.24,17.0]
[1673879906095,118.5659,23.257,23.24,17.0]
[1673879906452,109.7722,23.262,23.241,20.0]
[1673879906812,20.0,23.261,23.242,17.0]
[1673879907455,20.0,23.261,23.24,17.0]
[1673879910223,20.0,23.259,23.24,17.0]
[1673879911338,20.0,23.259,23.241,20.0]
[1673879911557,20.0,23.259,23.242,17.0]
[1673879911765,20.0,23.259,23.243,20.0]
[1673879913579,20.0,23.257,23.243,20.0]
[1673879913880,20.0,23.257,23.238,20.0]
[1673879914105,20.0,23.257,23.239,17.0]
[1673879914316,20.0,23.257,23.24,20.0]
[1673879916107,20.0,23.259,23.241,17.0]
[1673879916301,20.0,23.259,23.242,20.0]
[1673879916813,20.0,23.257,23.236,20.0]
[1673879917030,17.0,23.256,23.236,20.0]
[1673879917974,20.0,23.254,23.235,17.220649]
[1673879918812,49.28,23.253,23.235,17.220649]
[1673879919041,20.0,23.252,23.235,17.220649]
[1673879919444,20.0,23.25,23.235,17.220649]
[1673879920081,52.28,23.254,23.235,17.220649]
[1673879920304,52.28,23.254,23.236,17.0]
[1673879920501,20.0,23.254,23.236,17.0]
[1673879920705,20.0,23.254,23.237,20.0]
[1673879920913,32.28,23.255,23.238,16.0]
[1673879921139,32.27,23.258,23.238,16.0]
[1673879921342,17.0,23.255,23.239,20.0]
[1673879922707,17.0,23.255,23.236,20.0]
[1673879923035,20.0,23.254,23.236,20.0]
[1673879923246,20.0,23.254,23.237,17.0]
[1673879923456,20.0,23.254,23.238,20.0]
[1673879924277,20.0,23.254,23.236,20.0]
[1673879924493,17.0,23.253,23.236,20.0]
[1673879925971,52.28,23.254,23.236,20.0]
[1673879926181,20.0,23.254,23.237,17.0]
[1673879926387,20.0,23.254,23.238,20.0]
[1673879927128,24.95712,23.254,23.238,20.0]
[1673879927338,20.0,23.252,23.238,20.0]
[1673879927650,17.0,23.251,23.232,20.0]
[1673879927867,20.0,23.25,23.234,17.226162]
[1673879928081,17.0,23.249,23.235,20.0]
[1673879929466,20.0,23.248,23.235,20.0]
[1673879930834,20.0,23.248,23.234,17.226162]
[1673879931012,49.29,23.247,23.234,17.226162]
[1673879931221,20.0,23.246,23.234,17.226162]
[1673879931431,17.0,23.245,23.234,17.226162]
[1673879931662,49.29,23.245,23.234,17.226162]
[1673879931853,20.0,23.244,23.234,17.226162]
[1673879932280,17.0,23.243,23.234,17.226162]
[1673879932484,20.0,23.242,23.234,17.226162]
[1673879933448,17.0,23.241,23.234,17.226162]
[1673879933647,20.0,23.24,23.221,109.0958]
[1673879933846,20.0,23.238,23.221,109.0958]
[1673879934064,17.0,23.237,23.21,16.8]
[1673879934273,4.95712,23.236,23.211,112.9028]
[1673879934488,17.0,23.235,23.211,112.9028]
[1673879934700,20.0,23.234,23.211,112.9028]
[1673879934914,20.0,23.232,23.211,112.9028]
[1673879935327,17.0,23.231,23.211,112.9028]
[1673879935756,20.0,23.23,23.211,112.9028]
[1673879937022,20.0,23.23,23.212,17.0]
[1673879937236,17.0,23.231,23.212,17.0]
[1673879938795,20.0,23.23,23.212,17.0]
[1673879939009,17.0,23.229,23.211,112.9028]
[1673879939216,17.0,23.229,23.21,17.239674]
[1673879939430,20.0,23.228,23.21,17.239674]
[1673879940368,17.0,23.229,23.21,17.239674]
[1673879940580,37.0,23.23,23.211,17.0]
[1673879941526,111.6697,23.231,23.211,17.0]
[1673879942792,20.0,23.23,23.211,17.0]
[1673879943622,21.46196354,23.229,23.21,17.239674]
[1673879943830,20.0,23.228,23.21,17.239674]
[1673879944053,21.95712,23.227,23.21,17.239674]
[1673879944267,4.95712,23.226,23.21,17.239674]
[1673879944477,20.0,23.224,23.21,17.239674]
[1673879944688,20.0,23.224,23.204,113.2588]
[1673879944915,38.46196354,23.223,23.205,20.0]
[1673879945430,21.46196354,23.222,23.205,20.0]
[1673879945638,17.0,23.221,23.205,20.0]
[1673879945837,20.0,23.22,23.205,20.0]
[1673879946047,17.0,23.219,23.205,20.0]
[1673879946372,38.46196354,23.219,23.201,17.246866]
[1673879946577,68.99,23.22,23.201,17.246866]
[1673879946780,21.46196354,23.218,23.201,17.246866]
[1673879946993,37.0,23.217,23.201,17.246866]
[1673879947317,52.33,23.217,23.201,17.246866]
[1673879947629,16.76,23.21,23.201,17.246866]
[1673879947841,63.41908354,23.216,23.201,17.246866]
[1673879948043,21.46196354,23.21,23.201,17.246866]
[1673879948252,20.0,23.217,23.201,17.246866]
[1673879948465,20.0,23.215,23.201,17.246866]
[1673879948999,20.0,23.217,23.201,17.246866]
[1673879949192,20.0,23.217,23.202,20.0]
[1673879949401,20.0,23.217,23.203,17.0]
[1673879949632,20.0,23.22,23.204,20.0]
[1673879949844,20.0,23.229,23.204,20.0]
[1673879949845,113.3125,23.224,23.204,20.0]
[1673879950377,16.66,23.22,23.201,17.246866]
[1673879950681,4.95712,23.219,23.201,17.246866]
[1673879950883,37.28712,23.219,23.201,17.246866]
[1673879951081,149.9176,23.218,23.201,17.246866]
[1673879951287,4.95712,23.217,23.201,17.246866]
[1673879951503,17.0,23.216,23.201,17.246866]
[1673879951729,24.95712,23.215,23.201,17.246866]
[1673879951926,17.0,23.214,23.201,17.246866]
[1673879952258,20.0,23.213,23.201,17.246866]
[1673879952475,17.0,23.212,23.201,17.246866]
[1673879952782,16.8,23.21,23.201,17.246866]
[1673879952996,20.0,23.208,23.201,17.246866]
[1673879953307,20.0,23.208,23.18,36.84]
[1673879953518,125.6034,23.207,23.182,111.8619]
[1673879953836,20.0,23.206,23.183,20.0]
[1673879954058,20.0,23.206,23.183,41.46196354]
[1673879954258,20.0,23.206,23.184,21.46196354]
[1673879954458,20.0,23.206,23.181,17.26164]
[1673879954459,16.72,23.19,23.181,17.26164]
[1673879955512,20.0,23.188,23.181,17.26164]
[1673879956557,20.0,23.188,23.161,42.99]
[1673879956870,16.66,23.17,23.158,42.99]
[1673879957081,20.0,23.179,23.145,139.9239]
[1673879957291,62.82422766,23.176,23.145,119.9239]
[1673879957512,21.46196354,23.169,23.145,119.9239]
[1673879957832,20.0,23.168,23.144,109.0754472]
[1673879958024,37.34712,23.175,23.15,16.8]
[1673879958234,20.0,23.174,23.15,16.8]
[1673879958445,20.0,23.173,23.15,16.8]
[1673879958658,20.0,23.173,23.145,20.0]
[1673879958877,20.0,23.173,23.146,17.0]
[1673879959288,20.0,23.173,23.144,109.0754472]
[1673879959497,49.39,23.172,23.144,109.0754472]
[1673879959711,20.0,23.171,23.144,109.0754472]
[1673879959924,20.0,23.169,23.144,109.0754472]
[1673879960251,17.0,23.168,23.144,109.0754472]
[1673879960454,49.4,23.168,23.144,109.0754472]
[1673879960664,20.0,23.167,23.144,109.0754472]
[1673879960873,17.0,23.166,23.144,109.0754472]
[1673879961086,29.08752073,23.166,23.144,109.0754472]
[1673879961293,44.48752073,23.165,23.144,109.0754472]
[1673879961512,20.0,23.163,23.144,109.0754472]
[1673879961833,17.0,23.162,23.144,109.0754472]
[1673879962038,21.46196354,23.162,23.144,109.0754472]
[1673879962253,9.37444281,23.161,23.144,109.0754472]
[1673879962466,20.0,23.163,23.144,109.0754472]
[1673879962653,20.0,23.163,23.145,20.0]
[1673879962869,41.46196354,23.166,23.145,20.0]
[1673879963080,4.95712,23.167,23.145,20.0]
[1673879963286,32.39,23.178,23.146,38.46196354]
[1673879963496,20.0,23.176,23.147,20.0]
[1673879963722,20.0,23.176,23.148,37.0]
[1673879963932,16.8,23.17,23.148,20.0]
[1673879964252,16.8,23.17,23.144,109.0754472]
[1673879964253,16.8,23.17,23.147,20.0]
[1673879964471,74.35712,23.169,23.145,20.0]
[1673879964975,20.0,23.168,23.145,20.0]
[1673879965176,21.95712,23.167,23.145,20.0]
[1673879965388,4.95712,23.167,23.146,20.0]
[1673879965713,32.39,23.178,23.15,16.8]
[1673879965914,32.37,23.187,23.151,17.0]
[1673879966128,54.50422766,23.185,23.152,20.0]
[1673879966333,46.60984306,23.151,23.14,129.3437]
[1673879966551,46.60984306,23.151,23.145,20.0]
[1673879968556,46.60984306,23.151,23.146,17.0]
[1673879968773,46.60984306,23.151,23.147,20.0]
[1673879968981,46.60984306,23.151,23.148,17.0]
[1673879969188,46.60984306,23.151,23.149,20.0]
[1673879969397,46.60984306,23.151,23.15,17.0]
[1673879969720,46.60984306,23.151,23.15,37.0]
[1673879969908,46.60984306,23.151,23.15,20.0]
[1673879970660,46.60984306,23.151,23.145,20.0]
[1673879971198,46.60984306,23.151,23.146,20.0]
[1673879971383,46.60984306,23.151,23.147,20.0]
[1673879971801,0.00984306,23.151,23.147,41.07352558]
[1673879972017,32.39,23.175,23.148,20.0]
[1673879972240,20.0,23.174,23.148,20.0]
[1673879972451,20.0,23.173,23.148,20.0]
[1673879972850,32.39,23.172,23.148,41.07352558]
[1673879973065,20.0,23.171,23.149,20.0]
[1673879973492,32.39,23.172,23.15,20.0]
[1673879973937,52.39,23.173,23.151,17.0]
[1673879974241,32.4,23.171,23.151,17.0]
[1673879974445,32.39,23.172,23.151,17.0]
[1673879974857,32.39,23.172,23.15,17.0]
[1673879975074,32.39,23.172,23.149,20.0]
[1673879975276,32.39,23.172,23.15,17.0]
[1673879975486,20.0,23.171,23.149,20.0]
[1673879975696,20.0,23.171,23.15,37.0]
[1673879975920,20.0,23.171,23.151,17.0]
[1673879976651,17.0,23.17,23.151,17.0]
[1673879976855,17.0,23.17,23.15,20.0]
[1673879977070,20.0,23.168,23.146,20.0]
[1673879977270,17.0,23.167,23.146,20.0]
[1673879977690,20.0,23.168,23.146,41.07352558]
[1673879978106,20.0,23.168,23.147,20.0]
[1673879978551,20.0,23.168,23.146,20.0]
[1673879978552,4.95712,23.167,23.146,20.0]
[1673879978764,54.35712,23.167,23.146,20.0]
[1673879978950,20.0,23.166,23.146,20.0]
[1673879979165,17.0,23.165,23.145,20.0]
[1673879979377,20.0,23.164,23.145,20.0]
[1673879979586,32.4,23.165,23.145,20.0]
[1673879979895,110.2426,23.166,23.146,20.0]
[1673879980118,17.0,23.165,23.146,20.0]
[1673879980322,37.0,23.165,23.145,20.0]
[1673879980739,32.4,23.165,23.146,20.0]
[1673879980949,32.4,23.165,23.145,20.0]
[1673879981175,20.0,23.165,23.145,20.0]
[1673879981612,142.6426,23.166,23.145,20.0]
[1673879981897,17.0,23.165,23.146,20.0]
[1673879982096,142.6426,23.166,23.146,20.0]
[1673879982311,110.2426,23.166,23.146,20.0]
[1673879982520,110.2426,23.166,23.147,17.0]
[1673879982744,110.2426,23.166,23.148,20.0]
[1673879982941,110.2426,23.166,23.149,17.0]
[1673879983152,110.2426,23.166,23.15,20.0]
[1673879983580,32.39,23.172,23.15,20.0]
[1673879983787,32.39,23.172,23.151,17.0]
[1673879984007,20.0,23.171,23.148,20.0]
[1673879984318,20.0,23.171,23.149,20.0]
[1673879984319,17.0,23.17,23.149,20.0]
[1673879984519,32.4,23.17,23.149,20.0]
[1673879984733,32.4,23.17,23.15,21.07352558]
[1673879984948,113.6159,23.173,23.15,21.07352558]
[1673879984949,20.0,23.171,23.15,21.07352558]
[1673879985165,32.4,23.169,23.145,20.0]
[1673879985403,37.35712,23.17,23.146,20.0]
[1673879985588,32.4,23.168,23.146,20.0]
[1673879985797,32.4,23.17,23.146,41.07352558]
[1673879986031,52.39,23.172,23.147,21.07352558]
[1673879986222,32.4,23.169,23.149,20.0]
[1673879986431,17.0,23.168,23.149,20.0]
[1673879986664,32.4,23.168,23.149,20.0]
[1673879986852,113.6159,23.173,23.149,41.07352558]
[1673879987287,32.39,23.178,23.151,20.0]
[1673879987607,141.2222,23.186,23.151,20.0]
[1673879987800,32.37,23.19,23.152,175.36612558]
[1673879988012,141.2122,23.191,23.152,175.36612558]
[1673879988234,20.0,23.188,23.154,20.0]
[1673879988452,24.95712,23.188,23.155,37.0]
[1673879988664,32.37,23.187,23.155,58.07352558]
[1673879988856,141.2122,23.191,23.156,21.07352558]
[1673879989066,141.2122,23.191,23.157,17.0]
[1673879989275,146.16932,23.191,23.158,20.0]
[1673879989491,146.16932,23.191,23.159,37.0]
[1673879989692,146.16932,23.191,23.159,58.07352558]